Workbook

Sheet Kitöltési útmutató
A1: Kitöltési útmutató a támogatási összeg és támogatási intenzitás (%) meghatározásához a finanszírozási hiány ráta alkalmazásával helyi infrastruktúrára irányuló beruházási támogatás esetén*
A3: Általános információk
A4: KÉRJÜK, HOGY KIZÁRÓLAG A SÁRGA SZÍNNEL JELZETT CELLÁKAT TÖLTSE FEL TARTALOMMAL! A sárga színnel nem kiemelt cellák nem szerkeszthetők! Az egyszerűség kedvéért a Példa nevű munkalap segítséget jelenthet a kitöltés során.
A5: A támogatásból fejlesztett infrastruktúra gazdaságilag hasznos élettartama: Felhívjuk a figyelmet, hogy a támogatásból fejlesztett infrastruktúra gazdaságilag hasznos élettartama általában nem egyezik meg a projekt fenntartási idejével! A támogatásból fejlesztett infrastruktúra gazdaságilag hasznos élettartama a hatályos számviteli jogszabályok és a kedvezményezett számviteli politikája alapján kerül meghatározásra. A támogatási összeg kalkulátor nevű munkalapon a gazdaságilag hasznos élettartam 10 év, ahol a 0. év a beruházás megkezdésének évet jelöli.
A6: Időtengely értelmezése: a beruházás megvalósításának éve t0-t2 időszak között lehetséges. Az 1. év a beruházás megvalósításának kezdetét követő első év.
A8: Alkalmazott diszkontráta
A9: A referenciaként alkalmazásra javasolt diszkontráta 4% a Bizottság 480/2014/EU rendeletének** (17) bekezdése és 19. cikkének (3) bekezdése szerint. Indokolt esetben ettől el lehet térni a 19. cikk (4), (5) és (6) bekezdésekre való tekintettel.
A11: A projekt elszámolható összköltsége
A12: Kérjük adja meg a projekt elszámolható összköltségét forintban (NE ezer forintban adja meg az összköltséget). Az összegnek meg kell egyeznie a projekt adatlapban megadott elszámolható összköltséggel.
A14: Működési bevételek
A15: Kérjük adja meg a projekt megvalósításának eredményeképpen jelentkező működési típusú bevételeket a beruházás gazdaságilag hasznos élettartamára. A bevételeket az első évtől tüntesse fel, a 0. évre ne tüntessen fel bevételt. A bevételeket a gazdaságilag hasznos élettartam utolsó évéig tüntesse fel. A bevételeket fajtájuk szerint bontsa meg és nevezze meg (pl. bérleti díj, szolgáltatásnyújtásból származó bevétel, de ide tartozik a költségmegtakarítás is, ahol az alacsonyabb rezsiköltségből származó különbözeti összeget kell figyelembe venni, mint bevétel). Maximum öt bevételfajtát tud megkülönböztetni. Amennyiben a pályázó az ÁFA tv. hatálya alá tartozó ÁFA-alanynak minősül, ÁFA nélküli, nettó összegeket tüntessen fel. Az összegeket forintban (NE ezer forintban) tüntesse fel.
A17: A támogatásból fejlesztett infrastruktúra maradványértéke a gazdaságilag hasznos élettartam végén
A18: Kérjük, hogy adja meg a maradvényértéket. ÁFA nélküli, forintban (NE ezer forintban) kifejezett, nettó összeget tüntessen fel. A maradványértéket a hasznos élettartam utolsó évének oszlopában tüntesse fel. A sor többi oszlopát hagyja üresen. A támogatási összeg kalkulátor és Péda nevű munkalapokon a gazdaságilag hasznos élettartam 10 év, ahol az utolsó éven kell a fejlesztett infrastruktúra maradványértékével számolni. Az egyes infrastruktúrák gazdaságilag hasznos élettartamára vonatkozóan támpontot adhat a Bizottság 480/2014/EU rendeletének I. Melléklete.
A20: Működési kiadások
A21: Kérjük adja meg a projekt megvalóstásának eredményeként jelentkező működési típusú kiadásokat a beruházás hasznos élettartamára. A kiadásokat az első évtől tüntesse fel, a 0. évre ne tüntessen fel kiadást. A kiadásokat a hasznos élettartam utolsó évéig tüntesse fel. A kiadásokat fajtásuk szerint bontsa meg és nevezze mg (pl. személyi jellegű ráfordítás, anyagköltség, szerződéses szolgáltatás, távközlés, energiaköltség, karbantartás költsége, bérleti díj, adminisztrációs költség). Maximum hét kiadásfajtát tud megkülönbözetni. Amennyiben a pályázó az ÁFA tv. hatálya alá tartozó ÁFA-alanynak minősül, ÁFA nélküli, nettó összegeket tüntessen fel. Az összegeket forintban (NE ezer forintban) tüntesse fel.
A23: Működési eredmény
A24: A 651/2014/EU rendelet 2. cikkének 39. pontja alapján működési eredmény "a beruházás gazdaságilag hasznos időtartama alatti diszkontált bevételek és diszkontált működési költségek közötti különbség, amennyiben ez a különbség pozitív. A működési költségek közé tartoznak az olyan költségek, mint a személyi jellegű ráfordítások, az anyagköltségek, a szerződéses szolgáltatások, a távközlés, az energia és a karbantartás költségei, a bérleti díjak, az adminisztrációs költségek, de e rendelet alkalmazásában nem tartoznak bele az értékcsökkenési és a finanszírozási költségek, ha azokat beruházási támogatásból fedezték".
A26: A szöveges indoklásban az egyes bevétel- és kiadásfajtáknál törekedjen arra, hogy a feltüntetett összegeket részletesen támassza alá. Az értékeket bontsa meg egységár, mennyiség szorzatra. Az egyes évek közötti dinamikát mutassa be. A szöveges alátámasztás akkor megfelelő, amennyiben a szöveges információk alapján a kalkulátor lapon feltüntetett értékek harmadik fél által reprodukálhatók.
A29: * Az Európai Unió Működéséről szóló Szerződés 107. és 108. cikke alkalmazásában bizonyos támogatási kategóriáknak a belső piaccal összeegyeztethetővé nyilvánításáról szóló, 2014. június 17-i 651/2014/EU bizottsági rendelet 56. cikke értelmében (HL L 187., 2014.06.26. 1.o.) Elérhető:
A30: https://eur-lex.europa.eu/legal-content/HU/TXT/?uri=CELEX%3A32014R0651
A31: ** A Bizottság 480/2014/EU felhatalmazáson alapuló rendelete ( 2014. március 3. ) az Európai Regionális Fejlesztési Alapra, az Európai Szociális Alapra, a Kohéziós Alapra, az Európai Mezőgazdasági Vidékfejlesztési Alapra és az Európai Tengerügyi és Halászati Alapra vonatkozó közös rendelkezések megállapításáról, az Európai Regionális Fejlesztési Alapra, az Európai Szociális Alapra és a Kohéziós Alapra és az Európai Tengerügyi és Halászati Alapra vonatkozó általános rendelkezések megállapításáról szóló 1303/2013/EU európai parlamenti és tanácsi rendelet kiegészítéséről. Elérhető:
A32: https://eur-lex.europa.eu/legal-content/HU/TXT/?uri=uriserv:OJ.L_.2014.138.01.0005.01.HUN

Sheet Támogatási összeg kalkulátor
A1: Finanszírozási hiány (funding gap) | O1: Belső megtérülési ráta (BMR)
B5: A működési eredmény jelenértékének számításáshoz alkalmazott diszkontráta | C5: 0.04 | O5: t | P5: Költségek | Q5: Bevételek | R5: Nettó eredmény
B6: t | C6: 0 | D6: 1 | E6: 2 | F6: 3 | G6: 4 | H6: 5 | I6: 6 | J6: 7 | K6: 8 | L6: 9 | M6: Összesen | O6: 0 | P6: =C8+C17 -> 0 | Q6: =C9 -> 0 | R6: =Q6-P6 -> 0
A7: A | B7: A projekt elszámolható összköltségének nettó jelenértéke (Ft) | C7: =C8+(D8/D29)+(E8/E29) -> 0 | M7: =SUM(C7:L7) -> 0 | O7: 1 | P7: =D8+D17 -> 0 | Q7: =D9 -> 0 | R7: =Q7-P7 -> 0
B8: Elszámolható összköltség (Ft) | M8: =SUM(C8:L8) -> 0 | O8: 2 | P8: =E8+E17 -> 0 | Q8: =E9 -> 0 | R8: 0
A9: B | B9: Működési bevételek (Ft) | C9: =SUM(C10:C14) -> 0 | D9: 0 | E9: 0 | F9: 0 | G9: 0 | H9: 0 | I9: 0 | J9: 0 | K9: 0 | L9: 0 | M9: 0 | O9: 3 | P9: =F8+F17 -> 0 | Q9: =F9 -> 0 | R9: 0
B10: Bevétel 1 | M10: 0 | O10: 4 | P10: =G8+G17 -> 0 | Q10: =G9 -> 0 | R10: 0
B11: Bevétel 2 | M11: 0 | O11: 5 | P11: =H8+H17 -> 0 | Q11: =H9 -> 0 | R11: 0
B12: Bevétel 3 | M12: 0 | O12: 6 | P12: =I8+I17 -> 0 | Q12: =I9 -> 0 | R12: 0
B13: Bevétel 4 | M13: 0 | O13: 7 | P13: =J8+J17 -> 0 | Q13: =J9 -> 0 | R13: =Q13-P13 -> 0
B14: Bevétel 5 | M14: 0 | O14: 8 | P14: =K8+K17 -> 0 | Q14: =K9 -> 0 | R14: =Q14-P14 -> 0
B15: Diszkontált bevételek | C15: =C9/C29 -> 0 | D15: 0 | E15: 0 | F15: 0 | G15: 0 | H15: 0 | I15: 0 | J15: 0 | K15: 0 | L15: 0 | M15: 0 | O15: 9 | P15: =L8+L17 -> 0 | Q15: =L9 -> 0 | R15: =Q15-P15 -> 0
A16: C | B16: A támogatásból fejlesztett infrastruktúra maradványértéke a hasznos élettartam végén | M16: 0 | O16: BMR | R16: =IRR(R6:R15) -> 
A17: D | B17: Működési kiadások (Ft) | C17: =SUM(C18:C22) -> 0 | D17: =SUM(D18:D20) -> 0 | E17: 0 | F17: 0 | G17: 0 | H17: 0 | I17: 0 | J17: 0 | K17: 0 | L17: 0 | M17: 0
B18: Költség 1 (működési+rezsi) | M18: 0
B19: Költség 2 (karbantartási) | M19: 0
B20: Költség 3 (pótlási) | M20: 0
B21: Költség 4 | M21: 0
B22: Költség 5 | M22: 0
B23: Diszkontált pótlási költségek | C23: =C20/C29 -> 0 | D23: =D20/D29 -> 0 | E23: 0 | F23: 0 | G23: 0 | H23: 0 | I23: 0 | J23: 0 | K23: 0 | L23: 0 | M23: 0
B24: Diszkontált működési költségek összesen | C24: =C17/C29 -> 0 | D24: =D17/D29 -> 0 | E24: 0 | F24: 0 | G24: 0 | H24: 0 | I24: 0 | J24: 0 | K24: 0 | L24: 0 | M24: 0
A25: E | B25: Folyó működési eredmény (Ft) | C25: =C9+C16-C17 -> 0 | D25: 0 | E25: 0 | F25: 0 | G25: 0 | H25: 0 | I25: 0 | J25: 0 | K25: 0 | L25: 0 | M25: 0
B26: Beruházási költséggel csökkentett összegzett folyó működési eredmény (Ft) | C26: =SUM(C8:E8)-SUM(C25:L25) -> 0 | M26: 0
B27: Cashflow | C27: =-C8+C9+C16-C17 -> 0 | D27: 0 | E27: 0 | F27: 0 | G27: 0 | H27: 0 | I27: 0 | J27: 0 | K27: 0 | L27: 0 | M27: 0
B28: Kumulált cashflow | C28: =C27 -> 0 | D28: =C28+D27 -> 0 | E28: =D28+E27 -> 0 | F28: 0 | G28: 0 | H28: 0 | I28: 0 | J28: 0 | K28: 0 | L28: 0
B29: Diszkontfaktor | C29: 1 | D29: =(1+C5) -> 1.04 | E29: =POWER($D$29,E6) -> 1.0816 | F29: 1.124864 | G29: 1.16985856 | H29: 1.216652902 | I29: 1.265319018 | J29: 1.315931779 | K29: 1.36856905 | L29: 1.423311812
B30: Diszkontált működési eredmény | C30: =C25/C29 -> 0 | D30: =D25/D29 -> 0 | E30: =E25/E29 -> 0 | F30: 0 | G30: 0 | H30: 0 | I30: 0 | J30: 0 | K30: 0 | L30: 0 | M30: 0
A31: F | B31: Összegzett diszkontált működési eredmény (Ft) | C31: =SUM(C30:L30) -> 0
A33: 1 | B33: Diszkontált beruházási költség (DIC) | C33: =C7 -> 0
A34: 2 | B34: Diszkontált bevételek (a) | C34: =SUM(C15:L15) -> 0
A35: 3 | B35: Diszkontált működési és karbantartási költség (b) | C35: =SUM(C24:L24) -> 0
A36: 4 | B36: Diszkontált pótlási költség (c) | C36: =SUM(C23:L23) -> 0
A37: 5 | B37: Diszkontált maradványérték (d) | C37: =L16/L29 -> 0
A38: 6 | B38: Diszkontált nettó bevétel (DNR = a-b-c+d) | C38: =C34-C35-C36+C37 -> 0
A39: 7 | B39: Diszkontált elszámolható kiadás (Max EE = DIC-DNR) | C39: =C33-C38 -> 0
A40: 8 | B40: Finanszírozási hiány ráta (R = MaxEE/DIC) | C40: =C39/C33 -> 
A41: 9 | B41: Diszkontált elszámolható költség (EC) | C41: =C39 -> 0
A42: 10 | B42: Diszkontált támogatási összeg (DA = EC*R) | C42: =C41*C40 -> 
A43: 11 | B43: Támogatási intenzitás | C43: =C42/C33 -> 

Sheet Példa
A1: Finanszírozási hiány (funding gap) | O1: Belső megtérülési ráta (BMR)
B5: A működési eredmény jelenértékének számításáshoz alkalmazott diszkontráta | C5: 0.04 | O5: t | P5: Költségek | Q5: Bevételek | R5: Nettó eredmény
B6: t | C6: 0 | D6: 1 | E6: 2 | F6: 3 | G6: 4 | H6: 5 | I6: 6 | J6: 7 | K6: 8 | L6: 9 | M6: Összesen | O6: 0 | P6: =C8+C17 -> 5000000 | Q6: =C9 -> 0 | R6: =Q6-P6 -> -5000000
A7: A | B7: A projekt elszámolható összköltségének nettó jelenértéke (Ft) | C7: =C8+(D8/D29)+(E8/E29) -> 9733727.811 | M7: =SUM(C7:L7) -> 9733727.811 | O7: 1 | P7: =D8+D17 -> 4500000 | Q7: =D9 -> 1000000 | R7: =Q7-P7 -> -3500000
B8: Elszámolható összköltség (Ft) | C8: 5000000 | D8: 3000000 | E8: 2000000 | M8: =SUM(C8:L8) -> 10000000 | O8: 2 | P8: =E8+E17 -> 4100000 | Q8: =E9 -> 2200000 | R8: -1900000
A9: B | B9: Működési bevételek (Ft) | C9: =SUM(C10:C14) -> 0 | D9: 1000000 | E9: 2200000 | F9: 2600000 | G9: 2950000 | H9: 3300000 | I9: 3700000 | J9: 4050000 | K9: 4360000 | L9: 4647000 | M9: 28807000 | O9: 3 | P9: =F8+F17 -> 2700000 | Q9: =F9 -> 2600000 | R9: -100000
B10: Bevétel 1 | D10: 1000000 | E10: 1200000 | F10: 1400000 | G10: 1600000 | H10: 1800000 | I10: 2000000 | J10: 2200000 | K10: 2400000 | L10: 2600000 | M10: 16200000 | O10: 4 | P10: =G8+G17 -> 2800000 | Q10: =G9 -> 2950000 | R10: 150000
B11: Bevétel 2 | E11: 1000000 | F11: 1100000 | G11: 1200000 | H11: 1300000 | I11: 1400000 | J11: 1500000 | K11: 1600000 | L11: 1700000 | M11: 10800000 | O11: 5 | P11: =H8+H17 -> 3900000 | Q11: =H9 -> 3300000 | R11: -600000
B12: Bevétel 3 | F12: 100000 | G12: 150000 | H12: 200000 | I12: 300000 | J12: 350000 | K12: 360000 | L12: 347000 | M12: 1807000 | O12: 6 | P12: =I8+I17 -> 3000000 | Q12: =I9 -> 3700000 | R12: 700000
B13: Bevétel 4 | M13: 0 | O13: 7 | P13: =J8+J17 -> 3100000 | Q13: =J9 -> 4050000 | R13: =Q13-P13 -> 950000
B14: Bevétel 5 | M14: 0 | O14: 8 | P14: =K8+K17 -> 3200000 | Q14: =K9 -> 4360000 | R14: =Q14-P14 -> 1160000
B15: Diszkontált bevételek | C15: =C9/C29 -> 0 | D15: 961538.4615 | E15: 2034023.669 | F15: 2311390.533 | G15: 2521672.364 | H15: 2712359.452 | I15: 2924163.745 | J15: 3077667.143 | K15: 3185809.294 | L15: 3264920.56 | M15: 22993545.22 | O15: 9 | P15: =L8+L17 -> 4800000 | Q15: =L9 -> 4647000 | R15: =Q15-P15 -> -153000
A16: C | B16: A támogatásból fejlesztett infrastruktúra maradványértéke a hasznos élettartam végén | L16: 1000000 | M16: 1000000 | O16: BMR | R16: =IRR(R6:R15) -> -0.2104437502
A17: D | B17: Működési kiadások (Ft) | C17: =SUM(C18:C22) -> 0 | D17: =SUM(D18:D20) -> 1500000 | E17: 2100000 | F17: 2700000 | G17: 2800000 | H17: 3900000 | I17: 3000000 | J17: 3100000 | K17: 3200000 | L17: 4800000 | M17: 27100000
B18: Költség 1 (működési+rezsi) | D18: 1000000 | E18: 1500000 | F18: 2000000 | G18: 2000000 | H18: 2000000 | I18: 2000000 | J18: 2000000 | K18: 2000000 | L18: 2000000 | M18: 16500000
B19: Költség 2 (karbantartási) | D19: 500000 | E19: 600000 | F19: 700000 | G19: 800000 | H19: 900000 | I19: 1000000 | J19: 1100000 | K19: 1200000 | L19: 1300000 | M19: 8100000
B20: Költség 3 (pótlási) | H20: 1000000 | L20: 1500000 | M20: 2500000
B21: Költség 4 | M21: 0
B22: Költség 5 | M22: 0
B23: Diszkontált pótlási költségek | C23: =C20/C29 -> 0 | D23: =D20/D29 -> 0 | E23: 0 | F23: 0 | G23: 0 | H23: 821927.1068 | I23: 0 | J23: 0 | K23: 0 | L23: 1053880.103 | M23: 1875807.21
B24: Diszkontált működési költségek összesen | C24: =C17/C29 -> 0 | D24: =D17/D29 -> 1442307.692 | E24: 1941568.047 | F24: 2400290.168 | G24: 2393451.735 | H24: 3205515.716 | I24: 2370943.577 | J24: 2355745.221 | K24: 2338208.656 | L24: 3372416.331 | M24: 21820447.14
A25: E | B25: Folyó működési eredmény (Ft) | C25: =C9+C16-C17 -> 0 | D25: -500000 | E25: 100000 | F25: -100000 | G25: 150000 | H25: -600000 | I25: 700000 | J25: 950000 | K25: 1160000 | L25: 847000 | M25: 2707000
B26: Beruházási költséggel csökkentett összegzett folyó működési eredmény (Ft) | C26: =SUM(C8:E8)-SUM(C25:L25) -> 7293000 | M26: 7293000
B27: Cashflow | C27: =-C8+C9+C16-C17 -> -5000000 | D27: -3500000 | E27: -1900000 | F27: -100000 | G27: 150000 | H27: -600000 | I27: 700000 | J27: 950000 | K27: 1160000 | L27: 847000 | M27: -7293000
B28: Kumulált cashflow | C28: =C27 -> -5000000 | D28: =C28+D27 -> -8500000 | E28: =D28+E27 -> -10400000 | F28: -10500000 | G28: -10350000 | H28: -10950000 | I28: -10250000 | J28: -9300000 | K28: -8140000 | L28: -7293000
B29: Diszkontfaktor | C29: 1 | D29: =(1+C5) -> 1.04 | E29: =POWER($D$29,E6) -> 1.0816 | F29: 1.124864 | G29: 1.16985856 | H29: 1.216652902 | I29: 1.265319018 | J29: 1.315931779 | K29: 1.36856905 | L29: 1.423311812
B30: Diszkontált működési eredmény | C30: =C25/C29 -> 0 | D30: =D25/D29 -> -480769.2308 | E30: =E25/E29 -> 92455.6213 | F30: -88899.63587 | G30: 128220.6287 | H30: -493156.2641 | I30: 553220.168 | J30: 721921.9225 | K30: 847600.6378 | L30: 595090.965 | M30: 1875684.813
A31: F | B31: Összegzett diszkontált működési eredmény (Ft) | C31: =SUM(C30:L30) -> 1875684.813
A33: 1 | B33: Diszkontált beruházási költség (DIC) | C33: =C7 -> 9733727.811
A34: 2 | B34: Diszkontált bevételek (a) | C34: =SUM(C15:L15) -> 22993545.22
A35: 3 | B35: Diszkontált működési és karbantartási költség (b) | C35: =SUM(C24:L24) -> 21820447.14
A36: 4 | B36: Diszkontált pótlási költség (c) | C36: =SUM(C23:L23) -> 1875807.21
A37: 5 | B37: Diszkontált maradványérték (d) | C37: =L16/L29 -> 702586.7356
A38: 6 | B38: Diszkontált nettó bevétel (DNR = a-b-c+d) | C38: =C34-C35-C36+C37 -> -122.3974727
A39: 7 | B39: Diszkontált elszámolható kiadás (Max EE = DIC-DNR) | C39: =C33-C38 -> 9733850.208
A40: 8 | B40: Finanszírozási hiány ráta (R = MaxEE/DIC) | C40: =C39/C33 -> 1.000012575
A41: 9 | B41: Diszkontált elszámolható költség (EC) | C41: =C39 -> 9733850.208
A42: 10 | B42: Diszkontált támogatási összeg (DA = EC*R) | C42: =C41*C40 -> 9733972.607
A43: 11 | B43: Támogatási intenzitás | C43: =C42/C33 -> 1.000025149
